[Event "Live Chess"]
[Site "Chess.com"]
[Date "2024.06.02"]
[Round "-"]
[White "booktrunk"]
[Black "Pandreq"]
[Result "0-1"]
[WhiteElo "1490"]
[BlackElo "1249"]
[TimeControl "300"]
[EndTime "6:57:24 PDT"]
[Termination "Pandreq won by resignation"]

1. d4 {[%clk 0:04:55.3]} 1... d5 {[%clk 0:04:58.6]} 2. Nc3 {[%clk 0:04:53.3]}
2... c6 {[%clk 0:04:57.9]} 3. e4 {[%clk 0:04:48.3]} 3... e6 {[%clk 0:04:56.5]}
4. exd5 {[%clk 0:04:46.4]} 4... cxd5 {[%clk 0:04:55.5]} 5. Bb5+ {[%clk
0:04:43.6]} 5... Nc6 {[%clk 0:04:50.6]} 6. h4 {[%clk 0:04:37.7]} 6... Bd7 {[%clk
0:04:48.2]} 7. Qf3 {[%clk 0:04:29.6]} 7... Nf6 {[%clk 0:04:44.1]} 8. Bg5 {[%clk
0:04:25.2]} 8... Be7 {[%clk 0:04:42.7]} 9. Nge2 {[%clk 0:04:19.1]} 9... h6
{[%clk 0:04:40.7]} 10. Bxf6 {[%clk 0:04:17.5]} 10... Bxf6 {[%clk 0:04:39.7]} 11.
Nf4 {[%clk 0:04:12.6]} 11... Nxd4 {[%clk 0:04:36.7]} 12. Qd3 {[%clk 0:04:08.5]}
12... Nxb5 {[%clk 0:04:28.6]} 13. Nxb5 {[%clk 0:04:05.8]} 13... Bxb2 {[%clk
0:04:25.4]} 14. Rb1 {[%clk 0:04:03.5]} 14... Qa5+ {[%clk 0:04:10.7]} 15. Kf1
{[%clk 0:03:59.7]} 15... Bxb5 {[%clk 0:04:04.2]} 0-1

[Event "Live Chess"]
[Site "Chess.com"]
[Date "2024.06.02"]
[Round "-"]
[White "bonantagulo"]
[Black "Frankie_Badacsonyi"]
[Result "0-1"]
[WhiteElo "2223"]
[BlackElo "2386"]
[TimeControl "300"]
[EndTime "6:57:27 PDT"]
[Termination "Frankie_Badacsonyi won on time"]

1. d4 {[%clk 0:04:54.8]} 1... Nf6 {[%clk 0:04:57.9]} 2. c4 {[%clk 0:04:52.3]}
2... d6 {[%clk 0:04:56.9]} 3. Nf3 {[%clk 0:04:47.4]} 3... g6 {[%clk 0:04:54.1]}
4. Nc3 {[%clk 0:04:46.7]} 4... Bf5 {[%clk 0:04:52]} 5. g3 {[%clk 0:04:37.8]}
5... Bg7 {[%clk 0:04:51]} 6. Bg2 {[%clk 0:04:37.3]} 6... O-O {[%clk 0:04:49.7]}
7. O-O {[%clk 0:04:36.8]} 7... c6 {[%clk 0:04:46.5]} 8. Bg5 {[%clk 0:04:19.6]}
8... Ne4 {[%clk 0:04:39.5]} 9. Nxe4 {[%clk 0:04:16.4]} 9... Bxe4 {[%clk
0:04:39.4]} 10. Qd2 {[%clk 0:04:11.7]} 10... Nd7 {[%clk 0:04:29.2]} 11. Bh6
{[%clk 0:04:02.4]} 11... Nf6 {[%clk 0:04:25.9]} 12. Bxg7 {[%clk 0:04:01.2]}
12... Kxg7 {[%clk 0:04:25.8]} 13. b4 {[%clk 0:03:53.3]} 13... Re8 {[%clk
0:04:05.4]} 14. Rfd1 {[%clk 0:03:45.3]} 14... Qc7 {[%clk 0:04:02.5]} 15. c5
{[%clk 0:02:59]} 15... Rad8 {[%clk 0:03:56]} 16. Qf4 {[%clk 0:02:44.6]} 16...
Qc8 {[%clk 0:03:46.2]} 17. h4 {[%clk 0:02:32.2]} 17... Qf5 {[%clk 0:03:43.5]}
18. e3 {[%clk 0:02:14.3]} 18... Qxf4 {[%clk 0:03:35.7]} 19. gxf4 {[%clk
0:02:12.7]} 19... Rd7 {[%clk 0:03:34.3]} 20. Ne5 {[%clk 0:01:47.6]} 20... dxe5
{[%clk 0:03:22.2]} 21. dxe5 {[%clk 0:01:47.5]} 21... Rxd1+ {[%clk 0:03:09.6]}
22. Rxd1 {[%clk 0:01:47.4]} 22... Bxg2 {[%clk 0:03:00.8]} 23. exf6+ {[%clk
0:01:46.6]} 23... Kxf6 {[%clk 0:03:00.3]} 24. Kxg2 {[%clk 0:01:45.4]} 24... Ke6
{[%clk 0:03:00]} 25. Kf3 {[%clk 0:01:39.1]} 25... h5 {[%clk 0:02:57.5]} 26. Ke4
{[%clk 0:01:05.6]} 26... Ra8 {[%clk 0:02:56.1]} 27. a4 {[%clk 0:00:56.7]} 27...
Rb8 {[%clk 0:02:51.7]} 28. a5 {[%clk 0:00:52.2]} 28... a6 {[%clk 0:02:48.5]} 29.
Rd2 {[%clk 0:00:42.4]} 29... Rf8 {[%clk 0:02:46.5]} 30. Rd1 {[%clk 0:00:40.4]}
30... Rc8 {[%clk 0:02:41.9]} 31. Rd2 {[%clk 0:00:39.6]} 31... f6 {[%clk
0:02:36.9]} 32. Rd1 {[%clk 0:00:38.5]} 32... Rg8 {[%clk 0:02:35.3]} 33. Rg1
{[%clk 0:00:35.7]} 33... Kf7 {[%clk 0:02:34.1]} 34. Rd1 {[%clk 0:00:30.5]} 34...
Ke6 {[%clk 0:02:28.7]} 35. Rg1 {[%clk 0:00:29.7]} 35... Rg7 {[%clk 0:02:18.4]}
36. Rd1 {[%clk 0:00:27.8]} 36... g5 {[%clk 0:02:06.6]} 37. fxg5 {[%clk
0:00:21.7]} 37... fxg5 {[%clk 0:02:05.2]} 38. Rg1 {[%clk 0:00:19.5]} 38... g4
{[%clk 0:02:01.7]} 39. f3 {[%clk 0:00:17.8]} 39... Kf6 {[%clk 0:02:01]} 40. fxg4
{[%clk 0:00:16.3]} 40... hxg4 {[%clk 0:02:00.9]} 41. Kf4 {[%clk 0:00:15.7]}
41... e5+ {[%clk 0:02:00.6]} 42. Kg3 {[%clk 0:00:13.9]} 42... Kf5 {[%clk
0:01:58.8]} 43. h5 {[%clk 0:00:11.8]} 43... Ke4 {[%clk 0:01:58.4]} 44. h6 {[%clk
0:00:10.9]} 44... Rh7 {[%clk 0:01:56.9]} 45. Rh1 {[%clk 0:00:10.5]} 45... Kf5
{[%clk 0:01:54.8]} 46. e4+ {[%clk 0:00:07.8]} 46... Kg5 {[%clk 0:01:53.3]} 47.
Rf1 {[%clk 0:00:05.9]} 47... Rxh6 {[%clk 0:01:51.2]} 48. Rf5+ {[%clk 0:00:05.8]}
48... Kg6 {[%clk 0:01:50.5]} 49. Rxe5 {[%clk 0:00:05.7]} 49... Rh3+ {[%clk
0:01:49.5]} 50. Kxg4 {[%clk 0:00:05.6]} 50... Rb3 {[%clk 0:01:48.8]} 51. Re6+
{[%clk 0:00:05]} 51... Kf7 {[%clk 0:01:45.6]} 52. Rd6 {[%clk 0:00:04.9]} 52...
Rxb4 {[%clk 0:01:44.6]} 53. Kf5 {[%clk 0:00:04.8]} 53... Ke7 {[%clk 0:01:43.1]}
54. e5 {[%clk 0:00:03.9]} 54... Rb1 {[%clk 0:01:42.2]} 55. Rh6 {[%clk
0:00:03.8]} 55... Rf1+ {[%clk 0:01:41.5]} 56. Ke4 {[%clk 0:00:03.7]} 56... Rf7
{[%clk 0:01:38.9]} 57. e6 {[%clk 0:00:02.1]} 57... Rg7 {[%clk 0:01:38]} 58. Ke5
{[%clk 0:00:01.6]} 58... Rg5+ {[%clk 0:01:37.4]} 59. Kd4 {[%clk 0:00:01.5]}
59... Rd5+ {[%clk 0:01:36.9]} 60. Kc4 {[%clk 0:00:00.6]} 60... Re5 {[%clk
0:01:36.5]} 61. Rh7+ {[%clk 0:00:00.5]} 61... Kxe6 {[%clk 0:01:35.3]} 62. Rxb7
{[%clk 0:00:00.4]} 62... Re4+ {[%clk 0:01:34.8]} 0-1

[Event "Live Chess"]
[Site "Chess.com"]
[Date "2024.06.02"]
[Round "-"]
[White "KeithArkell"]
[Black "NottheBishopSacrifice"]
[Result "1/2-1/2"]
[WhiteElo "2429"]
[BlackElo "2333"]
[TimeControl "300"]
[EndTime "6:57:27 PDT"]
[Termination "Game drawn by repetition"]

1. d4 {[%clk 0:04:58]} 1... d5 {[%clk 0:04:59.6]} 2. Nf3 {[%clk 0:04:57.1]} 2...
Nf6 {[%clk 0:04:58]} 3. c4 {[%clk 0:04:56.4]} 3... c6 {[%clk 0:04:57.5]} 4. Nc3
{[%clk 0:04:55.3]} 4... dxc4 {[%clk 0:04:56]} 5. a4 {[%clk 0:04:53]} 5... Bf5
{[%clk 0:04:55.4]} 6. Nh4 {[%clk 0:04:51.2]} 6... e6 {[%clk 0:04:55]} 7. Nxf5
{[%clk 0:04:50]} 7... exf5 {[%clk 0:04:54.9]} 8. Bg5 {[%clk 0:04:49.3]} 8... Bb4
{[%clk 0:04:53.8]} 9. Bxf6 {[%clk 0:04:47.7]} 9... Qxf6 {[%clk 0:04:52.5]} 10.
e3 {[%clk 0:04:47.3]} 10... O-O {[%clk 0:04:51.2]} 11. Bxc4 {[%clk 0:04:46.3]}
11... a5 {[%clk 0:04:49.7]} 12. O-O {[%clk 0:04:44.8]} 12... Nd7 {[%clk
0:04:48.3]} 13. g3 {[%clk 0:04:44.2]} 13... g6 {[%clk 0:04:45.2]} 14. Qb3 {[%clk
0:04:41.8]} 14... Rab8 {[%clk 0:04:43.4]} 15. Rad1 {[%clk 0:04:40.8]} 15... Kg7
{[%clk 0:04:41.9]} 16. Rfe1 {[%clk 0:04:35.8]} 16... Rfe8 {[%clk 0:04:38.1]} 17.
Kg2 {[%clk 0:04:31.1]} 17... Qe7 {[%clk 0:04:35.1]} 18. Qc2 {[%clk 0:04:27]}
18... Nf6 {[%clk 0:04:33.5]} 19. Be2 {[%clk 0:04:25.5]} 19... Rbd8 {[%clk
0:04:28.5]} 20. Bf3 {[%clk 0:04:22.5]} 20... h5 {[%clk 0:04:26.5]} 21. h4 {[%clk
0:04:20.8]} 21... Ne4 {[%clk 0:04:17.7]} 22. Bxe4 {[%clk 0:04:18.9]} 22... fxe4
{[%clk 0:04:16.9]} 23. Rf1 {[%clk 0:04:16.1]} 23... Qe6 {[%clk 0:04:12.2]} 24.
Qe2 {[%clk 0:04:14.1]} 24... Qb3 {[%clk 0:04:07.4]} 25. Ra1 {[%clk 0:04:13]}
25... Bxc3 {[%clk 0:03:42.1]} 26. bxc3 {[%clk 0:04:12.9]} 26... Qxc3 {[%clk
0:03:41.3]} 27. Rab1 {[%clk 0:04:10.7]} 27... Rd7 {[%clk 0:03:34.9]} 28. Rfc1
{[%clk 0:04:08.3]} 28... Qa3 {[%clk 0:03:26.5]} 29. Qc2 {[%clk 0:04:06.9]} 29...
Qd6 {[%clk 0:03:15.9]} 30. Qc5 {[%clk 0:04:05.5]} 30... Qxc5 {[%clk 0:03:14.6]}
31. Rxc5 {[%clk 0:04:03.8]} 31... Ra8 {[%clk 0:03:14.2]} 32. Re5 {[%clk
0:04:02.1]} 32... f5 {[%clk 0:03:13.3]} 33. Rc5 {[%clk 0:03:57.8]} 33... Kf6
{[%clk 0:03:10.6]} 34. f3 {[%clk 0:03:55.8]} 34... exf3+ {[%clk 0:03:08.8]} 35.
Kxf3 {[%clk 0:03:55.1]} 35... Re7 {[%clk 0:03:07.8]} 36. Rb3 {[%clk 0:03:54]}
36... Ra7 {[%clk 0:02:56.6]} 37. Kf4 {[%clk 0:03:44.1]} 37... Re4+ {[%clk
0:02:54.5]} 38. Kf3 {[%clk 0:03:43.6]} 38... Re7 {[%clk 0:02:53.9]} 39. Kf4
{[%clk 0:03:41.6]} 39... Re4+ {[%clk 0:02:52.9]} 40. Kf3 {[%clk 0:03:41.1]}
40... Re7 {[%clk 0:02:52]} 1/2-1/2

[Event "Live Chess"]
[Site "Chess.com"]
[Date "2024.06.02"]
[Round "-"]
[White "Mangoalo"]
[Black "davigator"]
[Result "0-1"]
[WhiteElo "1068"]
[BlackElo "2349"]
[TimeControl "300"]
[EndTime "6:57:46 PDT"]
[Termination "davigator won by resignation"]

1. c4 {[%clk 0:04:55.4]} 1... e5 {[%clk 0:04:58.3]} 2. Nc3 {[%clk 0:04:54.6]}
2... Bb4 {[%clk 0:04:55.8]} 3. Qc2 {[%clk 0:04:51.7]} 3... c6 {[%clk 0:04:52.3]}
4. d3 {[%clk 0:04:49.8]} 4... Nf6 {[%clk 0:04:49.8]} 5. Bg5 {[%clk 0:04:48.5]}
5... O-O {[%clk 0:04:47.8]} 6. O-O-O {[%clk 0:04:46.8]} 6... h6 {[%clk
0:04:45.9]} 7. Bxf6 {[%clk 0:04:44.5]} 7... Qxf6 {[%clk 0:04:45]} 8. Nf3 {[%clk
0:04:44.4]} 8... d6 {[%clk 0:04:43.3]} 9. e4 {[%clk 0:04:44.3]} 9... a5 {[%clk
0:04:41]} 10. Kb1 {[%clk 0:04:42.3]} 10... Bc5 {[%clk 0:04:37.2]} 11. Be2 {[%clk
0:04:27.5]} 11... Na6 {[%clk 0:04:36.2]} 12. Nd2 {[%clk 0:04:24.4]} 12... Nb4
{[%clk 0:04:33.8]} 13. Qa4 {[%clk 0:04:20.3]} 13... Qxf2 {[%clk 0:04:31.9]} 14.
a3 {[%clk 0:04:17.1]} 14... Qxe2 {[%clk 0:04:27.6]} 15. Nxe2 {[%clk 0:04:15.1]}
15... Nxd3 {[%clk 0:04:25.9]} 16. Nf3 {[%clk 0:04:06.9]} 16... Nf2 {[%clk
0:04:24]} 17. Rdf1 {[%clk 0:04:04.4]} 17... Nxh1 {[%clk 0:04:22.9]} 18. Rxh1
{[%clk 0:04:04.3]} 18... Be6 {[%clk 0:04:21.3]} 19. Nc3 {[%clk 0:04:01.5]} 19...
f5 {[%clk 0:04:16.9]} 20. exf5 {[%clk 0:03:59.7]} 20... Bxf5+ {[%clk 0:04:16.1]}
21. Ka1 {[%clk 0:03:56.9]} 21... e4 {[%clk 0:04:15.4]} 22. Ne1 {[%clk
0:03:52.8]} 22... e3 {[%clk 0:04:08.8]} 23. Qd1 {[%clk 0:03:43]} 23... Rae8
{[%clk 0:04:05.2]} 24. Rf1 {[%clk 0:03:38.8]} 24... Kh7 {[%clk 0:03:57.9]} 25.
g4 {[%clk 0:03:30.2]} 25... Bd7 {[%clk 0:03:52.6]} 26. Rxf8 {[%clk 0:03:30.1]}
26... Rxf8 {[%clk 0:03:51.5]} 27. Qd3+ {[%clk 0:03:29.3]} 27... Kg8 {[%clk
0:03:49.6]} 28. Ne2 {[%clk 0:03:26.5]} 28... Bxg4 {[%clk 0:03:48]} 29. Ng2
{[%clk 0:03:21.9]} 29... Rf2 {[%clk 0:03:43.1]} 30. Ngf4 {[%clk 0:03:19.2]}
30... Rxh2 {[%clk 0:03:23.9]} 31. Ng6 {[%clk 0:03:08.3]} 31... Bxe2 {[%clk
0:03:19.8]} 32. Ne7+ {[%clk 0:03:06.2]} 32... Kf7 {[%clk 0:03:18.8]} 33. Qxe3
{[%clk 0:03:00.8]} 33... Bxe3 {[%clk 0:03:16.9]} 34. Nxc6 {[%clk 0:02:58.9]}
34... bxc6 {[%clk 0:03:15.5]} 0-1

[Event "Live Chess"]
[Site "Chess.com"]
[Date "2024.06.02"]
[Round "-"]
[White "Ferrarifan27"]
[Black "ACM42"]
[Result "1-0"]
[WhiteElo "2140"]
[BlackElo "2188"]
[TimeControl "300"]
[EndTime "6:58:03 PDT"]
[Termination "Ferrarifan27 won by resignation"]

1. e4 {[%clk 0:04:58.8]} 1... e6 {[%clk 0:04:58.8]} 2. d4 {[%clk 0:04:57.5]}
2... d5 {[%clk 0:04:57.7]} 3. Nc3 {[%clk 0:04:54.7]} 3... Bb4 {[%clk 0:04:56.2]}
4. e5 {[%clk 0:04:52.7]} 4... Bxc3+ {[%clk 0:04:55.4]} 5. bxc3 {[%clk
0:04:51.4]} 5... c5 {[%clk 0:04:54.7]} 6. Qg4 {[%clk 0:04:47.1]} 6... Kf8 {[%clk
0:04:51.7]} 7. Ba3 {[%clk 0:04:44.3]} 7... b6 {[%clk 0:04:47.7]} 8. dxc5 {[%clk
0:04:43.2]} 8... Qe7 {[%clk 0:04:45.8]} 9. Qb4 {[%clk 0:04:19.2]} 9... bxc5
{[%clk 0:04:44.5]} 10. Qxc5 {[%clk 0:04:17.8]} 10... Nd7 {[%clk 0:04:39.7]} 11.
Qa5 {[%clk 0:04:14.9]} 1-0

[Event "Live Chess"]
[Site "Chess.com"]
[Date "2024.06.02"]
[Round "-"]
[White "NAZRIZ1977"]
[Black "Pablo_dmp"]
[Result "1/2-1/2"]
[WhiteElo "2067"]
[BlackElo "1982"]
[TimeControl "300"]
[EndTime "6:58:19 PDT"]
[Termination "Game drawn by repetition"]

1. f3 {[%clk 0:04:48.4]} 1... c5 {[%clk 0:04:59.9]} 2. Nh3 {[%clk 0:04:47.3]}
2... Nc6 {[%clk 0:04:59.5]} 3. Nf2 {[%clk 0:04:46.9]} 3... d5 {[%clk 0:04:59.4]}
4. g3 {[%clk 0:04:46.4]} 4... e5 {[%clk 0:04:59.2]} 5. Bg2 {[%clk 0:04:46]} 5...
f5 {[%clk 0:04:59]} 6. O-O {[%clk 0:04:45.3]} 6... Nf6 {[%clk 0:04:58.6]} 7. c4
{[%clk 0:04:44.4]} 7... Bd6 {[%clk 0:04:58.5]} 8. cxd5 {[%clk 0:04:43.5]} 8...
Nxd5 {[%clk 0:04:58.4]} 9. e4 {[%clk 0:04:41.6]} 9... Nf6 {[%clk 0:04:56.8]} 10.
Nc3 {[%clk 0:04:37.2]} 10... O-O {[%clk 0:04:54]} 11. d3 {[%clk 0:04:32.2]}
11... Kh8 {[%clk 0:04:50.8]} 12. Bg5 {[%clk 0:04:31.3]} 12... Nd4 {[%clk
0:04:48.8]} 13. Nd5 {[%clk 0:04:28.3]} 13... Be7 {[%clk 0:04:44.9]} 14. Nxe7
{[%clk 0:04:27.3]} 14... Qxe7 {[%clk 0:04:44.8]} 15. f4 {[%clk 0:04:26.8]} 15...
fxe4 {[%clk 0:04:41.5]} 16. Nxe4 {[%clk 0:04:25.4]} 16... h6 {[%clk 0:04:31.6]}
17. fxe5 {[%clk 0:04:16.8]} 17... hxg5 {[%clk 0:04:24.5]} 18. exf6 {[%clk
0:04:15.7]} 18... gxf6 {[%clk 0:04:22.8]} 19. Qh5+ {[%clk 0:03:59.1]} 19... Qh7
{[%clk 0:04:20.9]} 20. Qxh7+ {[%clk 0:03:58.1]} 20... Kxh7 {[%clk 0:04:20.8]}
21. Nxg5+ {[%clk 0:03:54.5]} 21... Kg6 {[%clk 0:04:18.5]} 22. Ne4 {[%clk
0:03:52]} 22... f5 {[%clk 0:04:17.1]} 23. Nxc5 {[%clk 0:03:50.5]} 23... Rb8
{[%clk 0:04:12.1]} 24. Rae1 {[%clk 0:03:44.2]} 24... b6 {[%clk 0:04:10.6]} 25.
Nb3 {[%clk 0:03:34.6]} 25... Nxb3 {[%clk 0:03:44.8]} 26. axb3 {[%clk 0:03:34.5]}
26... Rf6 {[%clk 0:03:41.8]} 27. d4 {[%clk 0:03:15.5]} 27... Ba6 {[%clk
0:03:40.4]} 28. Rf2 {[%clk 0:03:07.9]} 28... Rd8 {[%clk 0:03:37.9]} 29. d5
{[%clk 0:03:05.9]} 29... Rdd6 {[%clk 0:03:24.1]} 30. Re7 {[%clk 0:02:58.4]}
30... Rf7 {[%clk 0:03:20.4]} 31. Rxf7 {[%clk 0:02:55.1]} 31... Kxf7 {[%clk
0:03:20.3]} 32. Rxf5+ {[%clk 0:02:54.6]} 32... Kg6 {[%clk 0:03:20.2]} 33. Be4
{[%clk 0:02:50.7]} 33... Bb7 {[%clk 0:03:11.6]} 34. g4 {[%clk 0:02:44.8]} 34...
a5 {[%clk 0:03:06.8]} 35. h4 {[%clk 0:02:42.3]} 35... b5 {[%clk 0:03:02.3]} 36.
h5+ {[%clk 0:02:39.9]} 36... Kh6 {[%clk 0:03:00.4]} 37. Rf8 {[%clk 0:02:28.6]}
37... Bxd5 {[%clk 0:02:58]} 38. Bc2 {[%clk 0:02:07.7]} 38... Kg5 {[%clk
0:02:55.3]} 39. Bf5 {[%clk 0:01:57.7]} 39... Bxb3 {[%clk 0:02:51.3]} 40. Rh8
{[%clk 0:01:49.8]} 40... a4 {[%clk 0:02:49.6]} 41. h6 {[%clk 0:01:48.3]} 41...
Rxh6 {[%clk 0:02:48.4]} 42. Rxh6 {[%clk 0:01:40]} 42... Kxh6 {[%clk 0:02:48.3]}
43. Kf2 {[%clk 0:01:39.6]} 43... b4 {[%clk 0:02:45.3]} 44. Ke3 {[%clk
0:01:39.5]} 44... Kg5 {[%clk 0:02:43.7]} 45. Kd4 {[%clk 0:01:37.3]} 45... a3
{[%clk 0:02:41.5]} 46. bxa3 {[%clk 0:01:36]} 46... bxa3 {[%clk 0:02:41.4]} 47.
Kc3 {[%clk 0:01:31.5]} 47... Bf7 {[%clk 0:02:33.4]} 48. Kc2 {[%clk 0:01:20.9]}
48... Bd5 {[%clk 0:02:21.4]} 49. Kb1 {[%clk 0:01:19.3]} 49... Bf3 {[%clk
0:02:17.7]} 50. Ka1 {[%clk 0:01:17.9]} 50... Bd5 {[%clk 0:02:15.7]} 51. Be4
{[%clk 0:01:06.6]} 51... Bb3 {[%clk 0:02:11.4]} 52. Bc2 {[%clk 0:01:05.1]} 52...
Be6 {[%clk 0:02:08.8]} 53. Bf5 {[%clk 0:01:03.8]} 53... Bg8 {[%clk 0:02:06.7]}
54. Bh7 {[%clk 0:01:02.4]} 54... Bf7 {[%clk 0:02:05.9]} 55. Bf5 {[%clk
0:01:00.5]} 55... Kh4 {[%clk 0:02:03.4]} 56. Kb1 {[%clk 0:00:59]} 56... Kg5
{[%clk 0:02:01]} 57. Ka1 {[%clk 0:00:58.2]} 57... Kf4 {[%clk 0:01:59.4]} 58. Kb1
{[%clk 0:00:56.8]} 58... Bg8 {[%clk 0:01:54.6]} 59. Ka1 {[%clk 0:00:55.2]} 59...
Kg5 {[%clk 0:01:53.1]} 60. Kb1 {[%clk 0:00:54.4]} 60... Bb3 {[%clk 0:01:50.2]}
61. Ka1 {[%clk 0:00:54.3]} 61... Bc4 {[%clk 0:01:46.9]} 62. Kb1 {[%clk
0:00:54.2]} 62... Kf4 {[%clk 0:01:46]} 63. Ka1 {[%clk 0:00:52.9]} 63... Ke3
{[%clk 0:01:44.8]} 64. g5 {[%clk 0:00:50.9]} 64... Kf4 {[%clk 0:01:43.5]} 65.
Bb1 {[%clk 0:00:46.5]} 65... Kxg5 {[%clk 0:01:41.8]} 66. Ba2 {[%clk 0:00:46.3]}
66... Bb5 {[%clk 0:01:40.1]} 67. Bb1 {[%clk 0:00:46.2]} 67... Bc4 {[%clk
0:01:38.6]} 68. Ba2 {[%clk 0:00:45]} 68... Bd3 {[%clk 0:01:36.7]} 69. Bb1 {[%clk
0:00:44.9]} 69... Bc4 {[%clk 0:01:33.5]} 1/2-1/2

[Event "Live Chess"]
[Site "Chess.com"]
[Date "2024.06.02"]
[Round "-"]
[White "matt1979"]
[Black "agamilewska"]
[Result "1/2-1/2"]
[WhiteElo "1425"]
[BlackElo "1749"]
[TimeControl "300"]
[EndTime "6:58:31 PDT"]
[Termination "Game drawn - insufficient material"]

1. f4 {[%clk 0:04:58.5]} 1... d5 {[%clk 0:04:58.9]} 2. e3 {[%clk 0:04:57.4]}
2... Nc6 {[%clk 0:04:58.3]} 3. Bb5 {[%clk 0:04:56]} 3... Bd7 {[%clk 0:04:56.7]}
4. Nf3 {[%clk 0:04:54.9]} 4... Nf6 {[%clk 0:04:56]} 5. O-O {[%clk 0:04:53.5]}
5... a6 {[%clk 0:04:53.9]} 6. Bxc6 {[%clk 0:04:52.1]} 6... Bxc6 {[%clk 0:04:53]}
7. Ne5 {[%clk 0:04:51.2]} 7... e6 {[%clk 0:04:52.1]} 8. b3 {[%clk 0:04:49.8]}
8... Bd6 {[%clk 0:04:50.8]} 9. Nxc6 {[%clk 0:04:45.7]} 9... bxc6 {[%clk
0:04:49.9]} 10. Bb2 {[%clk 0:04:44.7]} 10... O-O {[%clk 0:04:48.6]} 11. d3
{[%clk 0:04:37.8]} 11... c5 {[%clk 0:04:47.5]} 12. Qf3 {[%clk 0:04:33.3]} 12...
h6 {[%clk 0:04:40.8]} 13. Qh3 {[%clk 0:04:30.2]} 13... Kh7 {[%clk 0:04:38.6]}
14. Nd2 {[%clk 0:04:23.4]} 14... d4 {[%clk 0:04:29.1]} 15. e4 {[%clk 0:04:20.9]}
15... e5 {[%clk 0:04:26.3]} 16. f5 {[%clk 0:04:18.6]} 16... Nd7 {[%clk
0:04:14.4]} 17. Rf3 {[%clk 0:04:04.6]} 17... Qg5 {[%clk 0:04:11.8]} 18. Bc1
{[%clk 0:03:57.2]} 18... g6 {[%clk 0:03:41.1]} 19. Nc4 {[%clk 0:03:54.9]} 19...
Qh5 {[%clk 0:03:32]} 20. Qxh5 {[%clk 0:03:44.9]} 20... gxh5 {[%clk 0:03:30.8]}
21. Bd2 {[%clk 0:03:30.3]} 21... Nf6 {[%clk 0:03:28.4]} 22. Raf1 {[%clk
0:03:17.8]} 22... Rg8 {[%clk 0:03:20.8]} 23. Be1 {[%clk 0:03:12.2]} 23... Rg4
{[%clk 0:02:38.3]} 24. Rg3 {[%clk 0:03:07.7]} 24... Rag8 {[%clk 0:02:34.9]} 25.
Rff3 {[%clk 0:03:03]} 25... Rxg3 {[%clk 0:02:32.6]} 26. Rxg3 {[%clk 0:03:01.4]}
26... Rxg3 {[%clk 0:02:31.3]} 27. Bxg3 {[%clk 0:03:00.3]} 27... Nd7 {[%clk
0:02:30.2]} 28. Bh4 {[%clk 0:02:50.5]} 28... f6 {[%clk 0:02:26.2]} 29. Kf2
{[%clk 0:02:45.4]} 29... Kg7 {[%clk 0:02:25.3]} 30. Kf3 {[%clk 0:02:41.4]} 30...
Kf7 {[%clk 0:02:21.5]} 31. Bf2 {[%clk 0:02:38.7]} 31... Nb6 {[%clk 0:02:20.5]}
32. Nxd6+ {[%clk 0:02:34.8]} 32... cxd6 {[%clk 0:02:18.9]} 33. Kg3 {[%clk
0:02:33.2]} 33... d5 {[%clk 0:02:13.4]} 34. Kh4 {[%clk 0:02:28.3]} 34... dxe4
{[%clk 0:02:10.3]} 35. dxe4 {[%clk 0:02:27.1]} 35... a5 {[%clk 0:02:02.6]} 36.
Kxh5 {[%clk 0:02:25.9]} 36... Kg7 {[%clk 0:02:01.3]} 37. Be1 {[%clk 0:02:22.7]}
37... a4 {[%clk 0:02:00.5]} 38. Bd2 {[%clk 0:02:20.3]} 38... axb3 {[%clk
0:01:56.3]} 39. axb3 {[%clk 0:02:19.4]} 39... c4 {[%clk 0:01:55.1]} 40. Bxh6+
{[%clk 0:02:16]} 40... Kf7 {[%clk 0:01:53.4]} 41. Bc1 {[%clk 0:02:09.3]} 41...
cxb3 {[%clk 0:01:51.2]} 42. cxb3 {[%clk 0:02:07.4]} 42... Nd7 {[%clk 0:01:41.5]}
43. Kg4 {[%clk 0:02:06.3]} 43... Nc5 {[%clk 0:01:40.8]} 44. b4 {[%clk
0:02:00.7]} 44... Nd3 {[%clk 0:01:37.8]} 45. Bd2 {[%clk 0:01:57.9]} 45... Nb2
{[%clk 0:01:33.6]} 46. h4 {[%clk 0:01:55.3]} 46... Nc4 {[%clk 0:01:32.6]} 47.
Be1 {[%clk 0:01:53]} 47... d3 {[%clk 0:01:31.8]} 48. b5 {[%clk 0:01:49.7]} 48...
Ne3+ {[%clk 0:00:49.9]} 49. Kf3 {[%clk 0:01:42.4]} 49... Nc2 {[%clk 0:00:48.5]}
50. Bd2 {[%clk 0:01:39.2]} 50... Nd4+ {[%clk 0:00:47.5]} 51. Kg4 {[%clk
0:01:34.8]} 51... Nxb5 {[%clk 0:00:46.5]} 52. h5 {[%clk 0:01:34]} 52... Kg7
{[%clk 0:00:44.8]} 53. Kf3 {[%clk 0:01:29]} 53... Na3 {[%clk 0:00:31.7]} 54. Ke3
{[%clk 0:01:26.1]} 54... Nc4+ {[%clk 0:00:28.7]} 55. Kxd3 {[%clk 0:01:24.9]}
55... Nd6 {[%clk 0:00:24.7]} 56. g4 {[%clk 0:01:23.4]} 56... Nb5 {[%clk
0:00:22.7]} 57. Kc4 {[%clk 0:01:21.9]} 57... Nd4 {[%clk 0:00:22]} 58. Bc3 {[%clk
0:01:04.8]} 58... Nf3 {[%clk 0:00:20.8]} 59. Kd5 {[%clk 0:00:58.6]} 59... Kh6
{[%clk 0:00:19.2]} 60. Ke6 {[%clk 0:00:56.2]} 60... Kg5 {[%clk 0:00:17.9]} 61.
Ba5 {[%clk 0:00:51.3]} 61... Kxg4 {[%clk 0:00:14.8]} 62. h6 {[%clk 0:00:50.1]}
62... Ng5+ {[%clk 0:00:13.4]} 63. Kxf6 {[%clk 0:00:46.2]} 63... Nxe4+ {[%clk
0:00:13]} 64. Kxe5 {[%clk 0:00:44]} 64... Ng5 {[%clk 0:00:12.5]} 65. f6 {[%clk
0:00:41.5]} 65... Nf7+ {[%clk 0:00:10.9]} 66. Ke6 {[%clk 0:00:38.3]} 66... Nxh6
{[%clk 0:00:10.4]} 67. Ke7 {[%clk 0:00:33.2]} 67... Kf5 {[%clk 0:00:08.7]} 68.
Bd2 {[%clk 0:00:31.2]} 68... Ng8+ {[%clk 0:00:04.9]} 69. Kf7 {[%clk 0:00:25.1]}
69... Nxf6 {[%clk 0:00:04.8]} 1/2-1/2